Cogmind - Beta 13 @@@ ROGUE MODE // 2024.04.21 @ 15:38:26 Player: Millea Result: Destroyed by P-80 Master with Gamma Rifle Performance ------------- Evolutions (8) 4000 Regions Visited (32) 6400 Robots Destroyed (178) 890 Value Destroyed (7217) 7217 Prototype IDs (100) 2000 Alien Tech Used (4) 800 Bonus (13087) 13087 TOTAL SCORE: 34394 Bonus ------- High Alert Combat Kills 310 Follower Combat Kills 286 Network Hubs Disabled 200 Met Data Miner 300 Met Zhirov 300 Met Warlord at Base 500 MAIN.C Attacked Warlord 500 Found Hidden Lab 3000 Used Core Reset Matrix 3000 Met Warlord at Research 2000 Invited to Help at Command 2000 Pursued by Intercept 1000 Friendly Fire -309 Cogmind --------- Core Integrity 0/1450 Matter 240/300 Energy 36/100 System Corruption 35% Temperature Cool (0) Movement Core (50) Location -2/Testing Parts ------- > --- POWER (2) -------- (None) > --- PROPULSION (9) --- Faulty High-density Centrium Wheel Electron Diverter > --- UTILITY (10) ----- Enhanced Optical Array Graphene Brace Advanced Hacking Suite Quantum Router > --- WEAPON (3) ------- Kinetic Spear > --- INVENTORY (5) ---- Medium Regenerative Plating SHELL Armor Peak State ------------ > --- POWER ------------ Particle Reactor Improved Quantum Reactor > --- PROPULSION ------- Nuclear Pulse Thruster Electron Diverter Impulse Thruster Array Impulse Thruster Array Impulse Thruster Array Cooled Q-thruster > --- UTILITY ---------- Advanced Power Amplifier Advanced Power Amplifier Advanced Gravity Neutralizer Enhanced Optical Array Experimental Core Analyzer Experimental Reaction Control System Centrium Light Armor Plating Centrium Light Armor Plating Graphene Brace Quantum Router > --- WEAPON ----------- Nanosword Plasma Lance Enhanced Force Lance > --- INVENTORY -------- Advanced Heat Sink Phase Gun Potential Cannon Gamma Bomb Array [Rating: 201] Favorites ----------- Power Cold Fusion Reactor Engine Light Ion Engine Power Core Light Nuclear Core Reactor Cold Fusion Reactor Propulsion Improved Cesium-ion Thruster Treads Light Treads Leg Enhanced Biometal Leg Wheel High-density Centrium Wheel Flight Unit Improved Cesium-ion Thruster Utility Medium Storage Unit Device Advanced Power Amplifier Storage Medium Storage Unit Processor Advanced Signal Interpreter Hackware Hacking Suite Protection Improved Propulsion Shielding Weapon Spear Energy Gun Medium Laser Energy Cannon Nova Cannon Ballistic Gun KE Penetrator Ballistic Cannon Omega Cannon Launcher Gamma Bomb Array Special Weapon Guided Remote Datajack Impact Weapon Heavy Mace Slashing Weapon Plasma Sword Piercing Weapon Spear Build | -11 -10 -9 -8 -7 -7 -7 -7 -6 -6 -6 -6 -6 -6 -5 -5 -5 -5 -5 -5 -4 -4 -4 -4 -4 -4 -4 -3 -3 -3 -3 -2 -2 ------- Run | Yrd Mat Mat Mat Fac Low Low Dat Pro Fac Ext Cet Arc Hub Fac Was Fac Upp Upp War Pro Fac Was Fac Upp Upp Zhi Pro Res Arm Lab Res Tes Slots Evolved 16 | . . 2 2 2 . . . . 2 . . . . 2 . . . . . . 2 . . . . . . 2 . . 2 . Power 1 | . . . . . . . . . . . . . . 1 . . . . . . . . . . . . . . . . . . Propulsion 7 | . . 1 1 1 . . . . . . . . . 1 . . . . . . . . . . . . . 2 . . 1 . Utility 8 | . . 1 1 1 . . . . 2 . . . . . . . . . . . 2 . . . . . . . . . 1 . Weapon . | . . . . . . . . . . . . . . . . . . . . . . . . . . . . . . . . . Parts Attached 391 | 6 4 15 13 7 10 . . 3 35 3 2 13 . 17 . 34 4 1 3 6 4 3 16 1 1 12 . 46 1 9 97 25 Power 50 | 1 2 1 2 . 1 . . 1 5 . . 1 . 2 . 4 . . . 1 1 . 1 . 1 2 . 9 . 1 13 1 Engine 10 | 1 2 1 1 . 1 . . . 2 . . 1 . . . . . . . . . . . . 1 . . . . . . . Core 12 | . . . 1 . . . . 1 2 . . . . 1 . 3 . . . 1 . . 1 . . . . 2 . . . . Reactor 28 | . . . . . . . . . 1 . . . . 1 . 1 . . . . 1 . . . . 2 . 7 . 1 13 1 Propulsion 89 | 2 . 3 4 2 2 . . . 9 1 1 4 . 6 . 8 . 1 . . . 1 1 . . 4 . 9 . . 23 8 Treads 15 | 2 . 3 . . . . . . . . . 3 . . . . . . . . . . . . . . . . . . 7 . Leg 5 | . . . . . . . . . . . . . . . . . . . . . . . . . . . . . . . 5 . Wheel 1 | . . . . . . . . . . . . . . . . . . . . . . . . . . . . . . . . 1 Hover . | . . . . . . . . . . . . . . . . . . . . . . . . . . . . . . . . . Flight 68 | . . . 4 2 2 . . . 9 1 1 1 . 6 . 8 . 1 . . . 1 1 . . 4 . 9 . . 11 7 Utility 161 | 1 2 5 4 2 3 . . . 16 1 1 2 . 6 . 15 4 . 2 3 1 2 13 1 . 6 . 22 1 3 37 8 Device 79 | . . 1 2 . 3 . . . 10 1 . 1 . 2 . 8 3 . 1 2 . 2 9 . . 3 . 11 . 1 18 1 Storage 8 | 1 1 2 . . . . . . . . . . . 1 . . . . . . . . . . . . . . . . 2 1 Processor 22 | . . . 2 2 . . . . 1 . . . . 2 . 1 . . 1 . . . . 1 . . . 6 . . 5 1 Hackware 14 | . 1 . . . . . . . 5 . 1 . . 1 . 3 . . . . . . 1 . . . . . . 1 . 1 Protection 38 | . . 2 . . . . . . . . . 1 . . . 3 1 . . 1 1 . 3 . . 3 . 5 1 1 12 4 Artifact . | . . . . . . . . . . . . . . . . . . . . . . . . . . . . . . . . . Weapon 91 | 2 . 6 3 3 4 . . 2 5 1 . 6 . 3 . 7 . . 1 2 2 . 1 . . . . 6 . 5 24 8 Energy Gun 16 | 1 . 4 1 1 . . . . . . . . . . . . . . 1 . 1 . . . . . . . . 1 6 . Energy Cannon 9 | . . 1 . . . . . . . . . . . . . . . . . . . . . . . . . . . 1 5 2 Ballistic Gun 25 | 1 . 1 . 2 1 . . 1 . 1 . 5 . 2 . 4 . . . . . . . . . . . . . . 7 . Ballistic Cannon 1 | . . . . . . . . . . . . . . . . . . . . . . . . . . . . . . . . 1 Launcher 11 | . . . . . 1 . . 1 1 . . . . . . . . . . 1 . . 1 . . . . 3 . . 3 . Special Weapon 1 | . . . . . . . . . . . . . . . . . . . . . . . . . . . . . . 1 . . Impact Weapon 3 | . . . 2 . 1 . . . . . . . . . . . . . . . . . . . . . . . . . . . Slashing Weapon 8 | . . . . . . . . . . . . . . . . 1 . . . 1 1 . . . . . . 1 . 1 1 2 Piercing Weapon 17 | . . . . . 1 . . . 4 . . 1 . 1 . 2 . . . . . . . . . . . 2 . 1 2 3 Special Melee Weapon . | . . . . . . . . . . . . . . . . . . . . . . . . . . . . . . . . . Unidentified Prototypes 53 | . . . . 2 1 . . . 4 . . . . . . 3 . . 2 . . . . . . 4 . 7 1 7 12 10 Parts Lost 122 | . 2 6 . 1 2 . . . 2 2 3 2 2 1 . . . 3 1 1 1 . 8 2 . . 1 26 . 3 39 14 Power 20 | . 2 1 . . 1 . . . . . . . . 1 . . . 1 . . . . 2 1 . . . 5 . 1 5 . Propulsion 40 | . . . . . 1 . . . 2 1 1 1 . . . . . . . . . . 1 . . . . 12 . 1 12 8 Utility 47 | . . 2 . . . . . . . 1 2 1 2 . . . . 2 1 1 . . 4 1 . . 1 8 . 1 14 6 Weapon 15 | . . 3 . 1 . . . . . . . . . . . . . . . . 1 . 1 . . . . 1 . . 8 . Highest Loss Streak 23 | . 1 3 . 1 2 . . . 2 2 3 1 2 1 . . . 2 1 2 1 . 4 1 . . 1 10 . 1 23 8 To Critical Strikes 2 | . . . . . . . . . . . . . . . . . . 1 . . . . 1 . . . . . . . . . Average Slot Usage (%) 88 | . 97 91 87 100 93 92 92 98 92 92 90 94 89 87 88 92 94 80 84 83 84 89 92 88 87 92 89 85 50 55 74 76 Engine 2 | . 13 6 2 . 4 7 7 2 . . . 4 6 1 . . . . 1 3 . . . . 3 5 5 . . . . . Core 1 | . . . 5 7 1 . . 4 1 . . . . 3 5 5 5 . . 1 1 . 1 4 . . . . . . . . Reactor 3 | . . . . . . . . . 3 6 6 1 . 4 5 4 5 5 5 5 8 10 8 . . 3 3 6 4 3 6 6 Treads 7 | . 28 32 . . . . . . . . . 10 20 . . . . . . . . . . . . . . . . . 12 . Flight 22 | . . . 36 38 37 38 38 38 33 33 33 21 13 33 35 33 35 35 35 35 31 31 31 31 31 31 31 33 9 8 2 24 Device 11 | . . 2 7 7 11 15 15 15 19 19 18 11 13 16 17 6 16 8 5 8 15 20 24 15 15 15 13 16 9 10 13 13 Storage 7 | . 23 21 9 7 7 7 7 7 6 6 6 6 6 5 5 5 5 5 5 5 5 5 5 5 5 5 5 3 . . 2 . Processor 8 | . . . 13 23 18 15 15 15 7 6 6 6 6 10 11 11 11 11 15 6 5 5 5 10 10 7 5 12 19 18 11 7 Hackware 4 | . 1 2 . . . . . . 11 13 12 13 7 5 5 12 . . . . . . 1 5 5 2 . . . 2 4 4 Protection 3 | . . 4 3 . . . . . . . . 4 1 . . 2 4 5 5 11 10 10 9 10 10 16 18 3 2 3 4 8 Energy Gun 2 | . 14 12 . 4 . . . . . . . . . . . . . . 1 . 1 . . . . . . . . . 1 . Energy Cannon 1 | . . 5 . . . . . . . . . . . . . . . . . . . . . . . . . . . . 4 . Ballistic Gun 2 | . 14 3 . 3 5 . . 4 . . . 10 13 1 . . . . . . . . . . . . . . . . 2 . Slashing Weapon 1 | . . . . . . . . . . . . . . . . 2 5 5 5 1 3 5 5 5 5 5 5 2 4 3 . 3 Piercing Weapon 1 | . . . . . . 7 7 7 5 6 6 1 . . . 2 . . . . . . . . . . . 2 . 3 . 5 Naked Turns . | . . . . . . . . . . . . . . . . . . . . . . . . . . . . . . . . . Heaviest Build 150 | 14 19 29 20 23 25 23 23 24 30 29 29 38 38 43 29 36 35 35 30 42 45 44 45 36 26 62 62 53 29 37 150 64 Greatest Support 336 | 40 40 63 20 24 25 25 25 25 30 36 36 69 69 43 36 38 36 36 36 45 45 45 47 38 38 36 36 64 37 37 336 85 Greatest Overweight (x) 7 | . . . . . 1 . . . . . . 1 . 1 . . . . . . . . 1 . . 1 1 3 . 3 1 7 Average Overweight (x) . | . . . . . . . . . . . . . . . . . . . . . . . . . . . . . . . . . Largest Inventory Capacity 20 | 8 8 10 10 10 10 10 10 10 10 10 10 10 10 10 10 10 10 10 10 10 10 10 10 10 10 10 10 10 5 5 20 5 Average Capacity 9 | 6 8 9 10 10 10 10 10 10 10 10 10 10 10 10 10 10 10 10 10 10 10 10 10 10 10 10 10 9 5 5 13 5 Most Carried 20 | 6 8 10 10 10 10 10 10 10 10 10 10 10 10 10 10 10 9 8 10 10 10 10 10 10 10 10 10 10 5 5 20 5 Average Carried 8 | 3 7 8 9 9 9 10 10 9 9 9 9 9 10 9 10 9 8 8 9 9 8 9 9 10 10 9 9 9 4 4 8 4 Final Capacity 10 | 8 8 10 10 10 10 10 10 10 10 10 10 10 10 10 10 10 10 10 10 10 10 10 10 10 10 10 10 5 5 5 5 5 Final Carried 10 | 6 6 8 10 10 10 10 10 10 10 10 8 10 10 10 10 10 8 8 10 7 10 10 10 10 10 10 10 5 4 5 5 4 Class Distribution -------------------- 17% | Hacker-Sprinter 15% | Sprinter 14% | Scout 13% | Mutant 13% | Scavenger-Mutant 4% | Hacker-Tank 4% | Hacker-Mutant 3% | Scavenger-Sprinter Dominant Class ---------------- Mutant | -10/Materials Scavenger-Mutant | -9/Materials Scout | -8/Materials Scout | -7/Factory Scout | -7/Lower Caves Scout | -7/Lower Caves Scout | -7/Data Miner Scavenger-Scout | -6/Proximity Caves Hacker-Sprinter | -6/Factory Hacker-Sprinter | -6/Extension Hacker-Sprinter | -6/Cetus Scavenger-Mutant | -6/Archives Scavenger-Mutant | -6/Hub_04(d) Sprinter | -5/Factory Sprinter | -5/Waste Hacker-Sprinter | -5/Factory Scout | -5/Upper Caves Sprinter | -5/Upper Caves Sprinter | -5/Warlord Sprinter | -4/Proximity Caves Sprinter | -4/Factory Sprinter | -4/Waste Sprinter | -4/Factory Sprinter | -4/Upper Caves Sprinter | -4/Upper Caves Mutant | -4/Zhirov Mutant | -3/Proximity Caves Scavenger-Scout | -3/Research Scavenger-Scout | -3/Armory Hacker-Mutant | -3/Lab Hacker-Tank | -2/Research Scavenger-Sprinter | -2/Testing Resources | -11 -10 -9 -8 -7 -7 -7 -7 -6 -6 -6 -6 -6 -6 -5 -5 -5 -5 -5 -5 -4 -4 -4 -4 -4 -4 -4 -3 -3 -3 -3 -2 -2 ----------- Run | Yrd Mat Mat Mat Fac Low Low Dat Pro Fac Ext Cet Arc Hub Fac Was Fac Upp Upp War Pro Fac Was Fac Upp Upp Zhi Pro Res Arm Lab Res Tes Matter Collected 5440 | 246 186 157 108 123 206 13 . 11 373 51 . 254 297 110 . 557 95 . 81 5 125 . 117 72 10 . 125 439 . . 1498 181 Remotely . | . . . . . . . . . . . . . . . . . . . . . . . . . . . . . . . . . Salvage Created 7810 | . 612 1249 271 270 197 . . 45 673 223 . 302 390 110 . 447 . . . 43 88 . 166 . 199 . . 586 . . 1499 440 Parts 354 | . 30 61 8 7 5 . . 5 39 9 . 15 17 8 . 13 . . . 4 5 . 16 . 4 . . 33 . . 58 17 Haulers Intercepted 19 | . 1 3 1 3 1 . . . 3 . . . . . . 3 . . . . . . . . . . . 2 . . 1 1 Recyclers Shooed 3 | . 2 . 1 . . . . . . . . . . . . . . . . . . . . . . . . . . . . . Parts Field Recycled . | . . . . . . . . . . . . . . . . . . . . . . . . . . . . . . . . . Retrieved Matter . | . . . . . . . . . . . . . . . . . . . . . . . . . . . . . . . . . Parts Self-Destructed 21 | . . . . . 6 . . 2 . . . . . . . . . 2 . 2 . . . 1 8 . . . . . . . Prevented . | . . . . . . . . . . . . . . . . . . . . . . . . . . . . . . . . . Kills | -11 -10 -9 -8 -7 -7 -7 -7 -6 -6 -6 -6 -6 -6 -5 -5 -5 -5 -5 -5 -4 -4 -4 -4 -4 -4 -4 -3 -3 -3 -3 -2 -2 ------- Run | Yrd Mat Mat Mat Fac Low Low Dat Pro Fac Ext Cet Arc Hub Fac Was Fac Upp Upp War Pro Fac Was Fac Upp Upp Zhi Pro Res Arm Lab Res Tes Combat Hostiles Destroyed 123 | . 13 16 10 1 5 . . 4 8 3 . 4 6 4 . 1 . . . 5 . . 6 . . . . 12 . . 20 5 Melee 19 | . . 1 6 . . . . . 2 3 . 1 . . . . . . . . . . 2 . . . . 2 . . . 2 Guns 40 | . 13 7 . . . . . . . . . 3 6 4 . 1 . . . . . . . . . . . . . . 6 . Cannons 14 | . . 3 . . . . . . . . . . . . . . . . . . . . . . . . . . . . 10 1 AOE 37 | . . . . . 5 . . 4 6 . . . . . . . . . . 5 . . 4 . . . . 10 . . 1 2 Classes Destroyed 20 | . 6 3 . . . . . . 6 . . . . . . . . . . . . . 1 . . . . 1 . . 3 . Worker 5 | . . 1 . . . . . . 1 . . . 2 . . . . . . . . . 1 . . . . . . . . . Builder 2 | . . . . . . . . . . . . . . . . . . . . . . . 1 . . . . 1 . . . . Tunneler 2 | . . . . . . . . . 1 . . . . . . . . . . . . . . . . . . 1 . . . . Hauler 19 | . 1 3 1 3 1 . . . 3 . . . . . . 3 . . . . . . . . . . . 2 . . 1 1 Recycler 4 | . 1 3 . . . . . . . . . . . . . . . . . . . . . . . . . . . . . . Operator 7 | . 1 1 1 . . . . . 1 . . . . . . 2 . . . . . . 1 . . . . . . . . . Watcher 15 | . 1 2 . 3 . . . . 3 . . . . . . 1 . . . . 2 . . . . . . 2 . . 1 . Swarmer 39 | . 3 . 8 . . . . 4 . . . . . 4 . . . . . 5 . . 5 . . . . 7 . . 3 . Cutter 4 | . . . . . . . . . . . . . . . . . . . . . . . . . . . . 4 . . . . Saboteur 1 | . . . . . . . . . 1 . . . . . . . . . . . . . . . . . . . . . . . Grunt 37 | . 10 11 . 1 5 . . . . . . . 5 . . 1 . . . . . . . . . . . 1 . . . 3 Brawler 1 | . . 1 . . . . . . . . . . . . . . . . . . . . . . . . . . . . . . Protector 1 | . . . . . . . . . 1 . . . . . . . . . . . . . . . . . . . . . . . Sentry 17 | . . 4 2 . . . . . . 3 . 4 1 . . . . . . . . . . . . . . . . . 3 . Demolisher 2 | . . . . . . . . . . . . . . . . . . . . . . . . . . . . . . . 2 . Specialist 2 | . . . . . . . . . 2 . . . . . . . . . . . . . . . . . . . . . . . Hunter 2 | . . . . . . . . . 2 . . . . . . . . . . . . . . . . . . . . . . . Programmer 7 | . . . . . . . . . 2 . . . . . . . . . . . . . 1 . . . . . . . 2 2 Tracker 2 | . . . . . . . . . . . . . . . . . . . . . . . . . . . . . . . 2 . Striker 5 | . . . . . . . . . . . . . . . . . . . . . . . . . . . . . . . 5 . Executioner 3 | . . . . . . . . . . . . . . . . . . . . . . . . . . . . . . . 3 . Packrat 3 | . . . . . . . . . . . . . . . . . . . . . . . . . 3 . . . . . . . Martyr 1 | . . . . . . . . . . . . . . . . . . . . . . . . . . . . . . . 1 . Best Kill Streak 6 | . 4 5 5 2 5 . . 4 6 2 . 1 4 4 . 2 . . . 5 1 . 5 . . . . 5 . . 6 2 Combat Bots Only 6 | . 3 5 4 1 5 . . 4 5 2 . 1 4 4 . 1 . . . 5 . . 5 . . . . 4 . . 6 2 Max Kills in Single Turn 3 | . 2 1 1 1 2 . . 2 3 1 . 1 1 1 . 1 . . . 3 1 . 3 . 1 . . 3 . . 1 2 Gunslinging 1 | . 1 . . . . . . . . . . . . . . . . . . . . . . . . . . . . . . . Exploded 3 | . . . . . 2 . . 2 3 . . . . . . . . . . 3 . . 3 . . . . 3 . . 1 1 Melee 1 | . . 1 1 . . . . . 1 1 . 1 . . . . . . . . . . 1 . . . . 1 . . . 1 Uniques/NPCs Destroyed . | . . . . . . . . . . . . . . . . . . . . . . . . . . . . . . . . . Combat | -11 -10 -9 -8 -7 -7 -7 -7 -6 -6 -6 -6 -6 -6 -5 -5 -5 -5 -5 -5 -4 -4 -4 -4 -4 -4 -4 -3 -3 -3 -3 -2 -2 -------- Run | Yrd Mat Mat Mat Fac Low Low Dat Pro Fac Ext Cet Arc Hub Fac Was Fac Upp Upp War Pro Fac Was Fac Upp Upp Zhi Pro Res Arm Lab Res Tes Hostile Shots Fired 1823 | . 63 82 27 10 39 5 . 7 20 28 12 31 56 8 . 14 . 42 27 18 6 . 66 8 3 . 32 247 1 71 524 376 Missed 632 | . 16 24 13 9 21 3 . 3 10 17 7 9 16 3 . 7 . 20 18 6 4 . 33 5 3 . 20 122 . 37 80 126 Damage Taken 25557 | . 519 751 101 16 291 37 . 97 174 224 155 528 586 71 . 130 . 419 250 252 43 . 671 54 . . 276 2427 73 887 11567 4958 Core 3604 | . 91 70 30 16 45 . . 61 93 107 24 151 44 12 . 33 . 178 49 33 . . 99 22 . . 22 714 73 204 911 522 Absorbed by Shields 51 | . . . . . . . . . . 35 . . . . . . . . . . . . 16 . . . . . . . . . Reduced by Siege Mode 2287 | . . . . . . . . . . . . . . . . . . . . . . . . . . . . . . . 2287 . Redirected to Shielding 358 | . . . . . . . . . . . . . . . . . . 22 15 . 13 . 225 . . . 44 39 . . . . Ignored by Resistances 138 | . . . . . . . . . . . . . . . . . . . . . . . . . . . 3 16 . . 119 . Regen/Repaired (Parts) 822 | . . . . . . . . . . . . . . . . 205 . . 8 . . . . . . . . . . 39 217 353 Core Remaining (%) 71 | 100 63 82 94 . . . . 82 . . . . 50 . . . . . . 69 . . . . . . 87 . . 20 . . Volleys Fired 328 | . 50 75 . 6 14 . . 3 . 4 . 20 33 4 . 28 . . . 3 5 . 1 . . . . 4 . 1 74 3 Largest 3 | . 2 2 . 2 2 . . 1 . 1 . 2 2 2 . 1 . . . 1 1 . 1 . . . . 1 . 1 3 1 Hottest 339 | . 70 130 . 65 53 . . 36 . 28 . 61 66 66 . 33 . . . 43 65 . 52 . . . . 52 . 200 339 200 Shots Fired 599 | . 99 115 . 10 15 . . 3 . 4 . 38 66 8 . 29 . . . 3 5 . 1 . . . . 4 . 1 195 3 Gun 452 | . 99 86 . 10 9 . . . . 4 . 38 66 8 . 29 . . . . 5 . . . . . . . . . 98 . Cannon 126 | . . 29 . . . . . . . . . . . . . . . . . . . . . . . . . . . 1 93 3 Launcher 21 | . . . . . 6 . . 3 . . . . . . . . . . . 3 . . 1 . . . . 4 . . 4 . Special . | . . . . . . . . . . . . . . . . . . . . . . . . . . . . . . . . . Kinetic 306 | . 50 20 . 9 9 . . . . 4 . 38 66 8 . 29 . . . . . . . . . . . . . . 73 . Thermal 214 | . 49 42 . 1 . . . . . . . . . . . . . . . . . . . . . . . . . 1 118 3 Explosive 21 | . . . . . 6 . . 3 . . . . . . . . . . . 3 . . 1 . . . . 4 . . 4 . Electromagnetic 58 | . . 53 . . . . . . . . . . . . . . . . . . 5 . . . . . . . . . . . Robot Hit Streak 20 | . 11 19 . 1 6 . . . . 4 . 15 10 1 . 4 . . . 4 1 . . . . . . 2 . . 20 3 Robot Miss Streak 8 | . 3 2 . 3 1 . . 1 . . . 2 3 1 . 4 . . . . 2 . 1 . . . . 2 . . 8 1 Penetration Max 1 | . . . . . . . . . . . . 1 1 . . 1 . . . . . . . . . . . . . . 1 . Secondary Targets 3 | . 1 . . . . . . . . . . . 1 . . . . . . . . . . . . . . . . . 1 . Max Gunslinging Chain 1 | . 1 . . . . . . . . . . . 1 . . . . . . . . . . . . . . . . . 1 . Shots Hit Robots 526 | . 66 90 15 14 10 . . . 14 16 . 35 37 4 . 25 . 2 . 3 3 . 10 . 4 . 1 20 . 3 139 15 Core Hits 264 | . 32 36 5 2 18 . . 4 18 7 . 13 19 4 . 11 . . . 2 3 . 11 . 1 . . 19 . 1 49 9 Critical Kills 9 | . . . 1 . . . . . . . . 2 . . . 2 . . . . . . . . . . . . . . 4 . Critical Parts Destroyed 17 | . 1 . 6 3 1 . . . . . . . 2 . . 4 . . . . . . . . . . . . . . . . Critical Strikes 46 | . 9 1 7 3 1 . . . 1 . . 2 2 . . 7 . . . . . . . . . . . 4 . 2 6 1 Burn 10 | . 8 . . . . . . . . . . . . . . . . . . . . . . . . . . . . . 2 . Meltdown 3 | . . . . . . . . . . . . . . . . . . . . . . . . . . . . . . . 3 . Destroy 13 | . 1 . . . 1 . . . . . . 2 2 . . 6 . . . . . . . . . . . . . . 1 . Corrupt 1 | . . 1 . . . . . . . . . . . . . . . . . . . . . . . . . . . . . . Smash 10 | . . . 7 3 . . . . . . . . . . . . . . . . . . . . . . . . . . . . Sever 5 | . . . . . . . . . . . . . . . . 1 . . . . . . . . . . . 3 . 1 . . Impale 4 | . . . . . . . . . 1 . . . . . . . . . . . . . . . . . . 1 . 1 . 1 Melee Attacks 253 | . . . 28 15 3 . . . 35 16 1 5 . . . 23 . 3 . . 2 . 20 1 8 . 2 37 2 12 . 40 Impact 44 | . . . 28 15 1 . . . . . . . . . . . . . . . . . . . . . . . . . . . Slashing 102 | . . . . . . . . . . . . . . . . 10 . 3 . . 2 . 20 1 8 . 2 27 2 3 . 24 Piercing 107 | . . . . . 2 . . . 35 16 1 5 . . . 13 . . . . . . . . . . . 10 . 9 . 16 Sneak Attacks 30 | . . . 5 2 . . . . 3 3 . . . . . 3 . 1 . . . . 2 . 3 . . 5 . . . 3 Combat Hostiles 5 | . . . 2 . . . . . . 2 . . . . . . . 1 . . . . . . . . . . . . . . Follow-up Attacks 8 | . . . . . . . . . . . . . . . . . . . . . . . . . . . . . . 2 . 6 Damage Inflicted 22966 | . 865 1652 794 583 874 . . 327 2312 505 . 873 1106 99 . 772 . 139 . 710 150 . 973 . 247 . 30 2266 . 286 5569 1834 Guns 6348 | . 865 885 . 56 182 . . . . 59 . 803 1106 99 . 103 . . . . 82 . . . . . . . . . 2108 . Cannons 4006 | . . 622 . . . . . . . . . . . . . . . . . . . . . . . . . . . . 3081 303 Explosions 6321 | . . 138 . . 692 . . 327 1599 . . . . . . . . . . 710 . . 537 . . . . 1192 . 48 380 698 Melee 6284 | . . . 794 527 . . . . 713 446 . 70 . . . 669 . 139 . . 68 . 436 . 247 . 30 1074 . 238 . 833 Ramming 7 | . . 7 . . . . . . . . . . . . . . . . . . . . . . . . . . . . . . Kinetic 4213 | . 352 161 . 56 182 . . . . 59 . 803 1106 99 . 103 . . . . . . . . . . . . . . 1292 . Thermal 6816 | . 513 624 . . . . . . 733 . . . . . . . . . . . . . . . . . . . . 48 3897 1001 Explosive 4674 | . . . . . 692 . . 327 866 . . . . . . . . . . 710 . . 507 . . . . 1192 . . 380 . Electromagnetic 972 | . . 860 . . . . . . . . . . . . . . . . . . 82 . 30 . . . . . . . . . Impact 1321 | . . . 794 527 . . . . . . . . . . . . . . . . . . . . . . . . . . . . Slashing 2387 | . . . . . . . . . . . . . . . . 355 . 139 . . 68 . 436 . 247 . 30 696 . 70 . 346 Piercing 2576 | . . . . . . . . . 713 446 . 70 . . . 314 . . . . . . . . . . . 378 . 168 . 487 Highest Corruption 34 | . . . . . . . . . . . . . . . 9 11 11 3 3 . . 10 10 . . . . 6 6 6 25 34 Average Corruption 9 | . . . . . . . . . . . . . . . 9 10 3 3 3 . . 10 5 . . . . 4 6 3 13 25 Corruption Purged 20 | . . . . . . . . . . . . . . . . 2 8 . . . . . 10 . . . . . . . . . Corruption Blocked 88 | . . . . . . . . . . . . . . . . . . . . . . . . . . . . . . . 88 . Effects 126 | . . . . . . . . . . . . . . . . 35 12 5 . . . 2 4 . . . . 13 1 4 25 25 Message Errors 30 | . . . . . . . . . . . . . . . . 6 6 . . . . . 1 . . . . 3 . 1 9 4 Matter Fused 28 | . . . . . . . . . . . . . . . . 6 4 2 . . . . 1 . . . . 2 . 1 7 5 Heat Flow Errors 21 | . . . . . . . . . . . . . . . . 7 2 1 . . . . 1 . . . . 4 . . 4 2 Energy Discharges 13 | . . . . . . . . . . . . . . . . 7 . . . . . . 1 . . . . 1 . 1 1 2 Parts Rejected 6 | . . . . . . . . . . . . . . . . 1 . 1 . . . 1 . . . . . 1 . . . 2 Data Loss (minor) 9 | . . . . . . . . . . . . . . . . 3 . . . . . . . . . . . 2 1 1 . 2 Data Loss (major) 6 | . . . . . . . . . . . . . . . . 1 . 1 . . . . . . . . . . . . 2 2 Misfires 2 | . . . . . . . . . . . . . . . . 1 . . . . . . . . . . . . . . 1 . Alerts 1 | . . . . . . . . . . . . . . . . 1 . . . . . . . . . . . . . . . . Misdirections 9 | . . . . . . . . . . . . . . . . 2 . . . . . 1 . . . . . . . . . 6 Weapon Failures 1 | . . . . . . . . . . . . . . . . . . . . . . . . . . . . . . . 1 . Overload Shots 12 | . . . . . . . . . . . . . . . . . . . . . . . . . . . . . . . 12 . Effects 1 | . . . . . . . . . . . . . . . . . . . . . . . . . . . . . . . 1 . Energy Bleed 1 | . . . . . . . . . . . . . . . . . . . . . . . . . . . . . . . 1 . Overflow Damage 1933 | . . 3 486 213 48 . . 23 136 . . . . . . 27 . . . 156 . . 119 . 126 . . 199 . . 112 285 Projectiles 259 | . . 3 73 . . . . . . . . . . . . . . . . . . . . . . . . . . . 112 71 Explosions 408 | . . . . . 48 . . 23 99 . . . . . . . . . . 156 . . 23 . . . . 2 . . . 57 Melee 1266 | . . . 413 213 . . . . 37 . . . . . . 27 . . . . . . 96 . 126 . . 197 . . . 157 Knockbacks 3 | . . . 3 . . . . . . . . . . . . . . . . . . . . . . . . . . . . . Impact 2 | . . . 2 . . . . . . . . . . . . . . . . . . . . . . . . . . . . . Kinetic . | . . . . . . . . . . . . . . . . . . . . . . . . . . . . . . . . . Secondary 1 | . . . 1 . . . . . . . . . . . . . . . . . . . . . . . . . . . . . Self-Inflicted Damage 316 | . . . . . 51 . . 36 . . . . . . . . . . . 67 . . . . . . . 39 . . . 123 Shots 7 | . . . . . 1 . . 1 . . . . . . . . . . . 2 . . . . . . . 1 . . . 2 Rammed 3 | . 2 1 . . . . . . . . . . . . . . . . . . . . . . . . . . . . . . Targets Rammed 4 | . 2 2 . . . . . . . . . . . . . . . . . . . . . . . . . . . . . . Kicked . | . . . . . . . . . . . . . . . . . . . . . . . . . . . . . . . . . Crushed 1 | . . 1 . . . . . . . . . . . . . . . . . . . . . . . . . . . . . . Highest Temperature 314 | . 156 289 . 35 20 1 . . . 46 16 1 20 . 8 288 272 218 5 . 49 2 266 10 . . . 176 . . 197 314 Average Temperature 67 | . 55 76 . 12 9 1 . . . 25 13 1 3 . 5 77 138 101 4 . 27 2 50 4 . . . 57 . . 112 99 Received Heat Transfer 2379 | . 258 420 . 9 96 9 . . 15 40 27 54 270 . . 72 . 39 18 . . . 48 . . . 9 266 . . 459 270 Siege Activations 3 | . . . . . . . . . . . . . . . . . . . . . . . . . . . . . . . 3 . Total Turns 175 | . . . . . . . . . . . . . . . . . . . . . . . . . . . . . . . 175 . Longest Duration 153 | . . . . . . . . . . . . . . . . . . . . . . . . . . . . . . . 153 . Robots Corrupted 6 | . . 6 . . . . . . . . . . . . . . . . . . . . . . . . . . . . . . Combat Hostiles 5 | . . 5 . . . . . . . . . . . . . . . . . . . . . . . . . . . . . . Parts Fried 29 | . . 8 11 7 . . . . . 1 . . . . . . . . . . 1 . . . . . . . . . 1 . Impact Corruptions 24 | . . . 14 10 . . . . . . . . . . . . . . . . . . . . . . . . . . . . Robots Melted 4 | . . . . . . . . . . . . . . . . . . . . . . . . . . . . . . . 4 . Combat Hostiles 3 | . . . . . . . . . . . . . . . . . . . . . . . . . . . . . . . 3 . Parts Melted 18 | . 5 1 . . . . . . 1 . . . . . . . . . . . . . . . . . . . . . 9 2 Heat Transferred 9138 | . 2109 1421 . . . . . . 450 . . . . . . . . . . . . . . . . . . . . 80 4258 820 Parts Sabotaged . | . . . . . . . . . . . . . . . . . . . . . . . . . . . . . . . . . Parts Stolen . | . . . . . . . . . . . . . . . . . . . . . . . . . . . . . . . . . Parts Stripped . | . . . . . . . . . . . . . . . . . . . . . . . . . . . . . . . . . Power Chain Reactions 2 | . . 2 . . . . . . . . . . . . . . . . . . . . . . . . . . . . . . Alert | -11 -10 -9 -8 -7 -7 -7 -7 -6 -6 -6 -6 -6 -6 -5 -5 -5 -5 -5 -5 -4 -4 -4 -4 -4 -4 -4 -3 -3 -3 -3 -2 -2 ------- Run | Yrd Mat Mat Mat Fac Low Low Dat Pro Fac Ext Cet Arc Hub Fac Was Fac Upp Upp War Pro Fac Was Fac Upp Upp Zhi Pro Res Arm Lab Res Tes Peak Influence 1672 | . 288 250 642 441 . . . . 541 596 309 247 336 176 79 390 . . . . 219 91 494 . . . . 1672 921 . 382 550 Initial 877 | . . . 105 291 . . . . 56 210 308 111 16 164 49 65 . . . . 126 76 63 . . . . 40 877 . . 91 Average 197 | . 113 115 385 343 . . . . 98 364 299 208 187 107 55 191 . . . . 172 88 113 . . . . 665 902 . 120 181 Maximum Alert Level 5 | . 1 1 2 2 . . . . 2 2 1 1 1 . . 1 . . . . 1 . 2 . . . . 5 3 . 1 2 Low Security (%) 63 | 100 83 85 22 . . . . . 92 . . 34 40 100 100 47 . . . . 71 100 88 . . . . 17 . . 72 77 Level 1 27 | . 16 14 26 91 . . . . 4 50 100 65 59 . . 52 . . . . 28 . 7 . . . . 29 . . 27 12 Level 2 6 | . . . 51 8 . . . . 3 49 . . . . . . . . . . . . 4 . . . . 19 . . . 10 Level 3 1 | . . . . . . . . . . . . . . . . . . . . . . . . . . . . 10 100 . . . Level 4 1 | . . . . . . . . . . . . . . . . . . . . . . . . . . . . 21 . . . . Level 5 . | . . . . . . . . . . . . . . . . . . . . . . . . . . . . 2 . . . . High Security . | . . . . . . . . . . . . . . . . . . . . . . . . . . . . . . . . . Max Security . | . . . . . . . . . . . . . . . . . . . . . . . . . . . . . . . . . Squads Dispatched 75 | . 3 1 2 6 . . . . 12 1 . . 4 . . 9 . 1 . . 1 . 2 . . . . 13 . . 7 13 Investigation 34 | . 1 1 1 5 . . . . 9 1 . . 3 . . 5 . . . . 1 . . . . . . 4 . . 1 2 Extermination 4 | . . . . . . . . . 2 . . . . . . . . . . . . . . . . . . 1 . . . 1 Reinforcement 23 | . 2 . 1 1 . . . . 1 . . . 1 . . 4 . . . . . . 2 . . . . 6 . . 1 4 Assault 3 | . . . . . . . . . . . . . . . . . . 1 . . . . . . . . . 2 . . . . Garrison 3 | . . . . . . . . . . . . . . . . . . . . . . . . . . . . . . . . 3 Intercept 8 | . . . . . . . . . . . . . . . . . . . . . . . . . . . . . . . 5 3 Searches Triggered 1 | . . . . . . . . . . . . . . . . . . . . . . . . . . . . 1 . . . . Construction Impeded 1 | . . . . . . . . . . . . . . . . 1 . . . . . . . . . . . . . . . . Haulers Reinforced 6 | . . . . 1 . . . . . . . . . . . 2 . . . . . . . . . . . 2 . . . 1 Active Scanning Responses . | . . . . . . . . . . . . . . . . . . . . . . . . . . . . . . . . . Cargo Convoy Interrupts 1 | . . . . . . . . . 1 . . . . . . . . . . . . . . . . . . . . . . . Stealth | -11 -10 -9 -8 -7 -7 -7 -7 -6 -6 -6 -6 -6 -6 -5 -5 -5 -5 -5 -5 -4 -4 -4 -4 -4 -4 -4 -3 -3 -3 -3 -2 -2 --------- Run | Yrd Mat Mat Mat Fac Low Low Dat Pro Fac Ext Cet Arc Hub Fac Was Fac Upp Upp War Pro Fac Was Fac Upp Upp Zhi Pro Res Arm Lab Res Tes Distress Signals 30 | . 3 2 2 1 . . . . 1 3 1 . 1 . . . . . . . . . 1 . . . . 5 . . 6 4 Communications Jammed 15 | . . . . . . . . . 8 . . 2 . . . . . . . . . . 5 . . . . . . . . . Distress Signals 15 | . . . . . . . . . 8 . . 2 . . . . . . . . . . 5 . . . . . . . . . Times Spotted 508 | . 21 21 23 10 18 7 . 6 21 15 5 7 12 4 5 23 . 27 18 9 5 4 25 6 4 . 8 104 3 1 41 55 Peak Tracking Total 25 | . 6 4 10 6 10 7 . 4 7 4 5 1 5 3 5 12 . 19 13 10 4 4 14 4 4 . 8 24 3 1 9 25 Tactical Retreats 74 | . 1 3 6 . 5 1 . . 5 2 . . 5 . . 3 . 6 2 3 . . 4 1 . . 1 17 . . . 9 Traps | -11 -10 -9 -8 -7 -7 -7 -7 -6 -6 -6 -6 -6 -6 -5 -5 -5 -5 -5 -5 -4 -4 -4 -4 -4 -4 -4 -3 -3 -3 -3 -2 -2 ------- Run | Yrd Mat Mat Mat Fac Low Low Dat Pro Fac Ext Cet Arc Hub Fac Was Fac Upp Upp War Pro Fac Was Fac Upp Upp Zhi Pro Res Arm Lab Res Tes Traps Triggered 16 | . 1 . . . . . . . 2 3 . . . 2 . 3 . . . . 1 . 2 . . . . 2 . . . . Indirectly . | . . . . . . . . . . . . . . . . . . . . . . . . . . . . . . . . . Trap Hack Attempts . | . . . . . . . . . . . . . . . . . . . . . . . . . . . . . . . . . Triggered . | . . . . . . . . . . . . . . . . . . . . . . . . . . . . . . . . . Disarmed . | . . . . . . . . . . . . . . . . . . . . . . . . . . . . . . . . . Reprogrammed . | . . . . . . . . . . . . . . . . . . . . . . . . . . . . . . . . . Reused . | . . . . . . . . . . . . . . . . . . . . . . . . . . . . . . . . . Traps Extracted . | . . . . . . . . . . . . . . . . . . . . . . . . . . . . . . . . . Installed . | . . . . . . . . . . . . . . . . . . . . . . . . . . . . . . . . . Triggered 14 | . . 2 . . 2 . . . . . . . . . . . . 1 9 . . . . . . . . . . . . . Objects Rigged 10 | . . . . . . . . . 10 . . . . . . . . . . . . . . . . . . . . . . . Exploded 5 | . . . . . . . . . 5 . . . . . . . . . . . . . . . . . . . . . . . Machines | -11 -10 -9 -8 -7 -7 -7 -7 -6 -6 -6 -6 -6 -6 -5 -5 -5 -5 -5 -5 -4 -4 -4 -4 -4 -4 -4 -3 -3 -3 -3 -2 -2 ---------- Run | Yrd Mat Mat Mat Fac Low Low Dat Pro Fac Ext Cet Arc Hub Fac Was Fac Upp Upp War Pro Fac Was Fac Upp Upp Zhi Pro Res Arm Lab Res Tes Machines Disabled 36 | . . 2 . . . . . . 12 2 . 2 . . . . . . . . . . 4 . . . . 3 2 2 . 7 Max in Single Turn 7 | . . 2 . . . . . . 7 1 . 1 . . . . . . . . . . 4 . . . . 1 1 1 . 3 Garrison Access 10 | . . . . . . . . . 1 . . . . 1 . 2 . . . . . . 1 . . . . 3 . . 2 . Network Hub 1 | . . . . . . . . . . . . . 1 . . . . . . . . . . . . . . . . . . . Energy Cycler 1 | . . . . . . . . . . 1 . . . . . . . . . . . . . . . . . . . . . . Machines Repaired . | . . . . . . . . . . . . . . . . . . . . . . . . . . . . . . . . . Machines Dismantled . | . . . . . . . . . . . . . . . . . . . . . . . . . . . . . . . . . Machines Sabotaged 1 | . . . . . . . . . . . . . 1 . . . . . . . . . . . . . . . . . . . Overloaded Fab Kills . | . . . . . . . . . . . . . . . . . . . . . . . . . . . . . . . . . Hacking | -11 -10 -9 -8 -7 -7 -7 -7 -6 -6 -6 -6 -6 -6 -5 -5 -5 -5 -5 -5 -4 -4 -4 -4 -4 -4 -4 -3 -3 -3 -3 -2 -2 --------- Run | Yrd Mat Mat Mat Fac Low Low Dat Pro Fac Ext Cet Arc Hub Fac Was Fac Upp Upp War Pro Fac Was Fac Upp Upp Zhi Pro Res Arm Lab Res Tes Machines Accessed 109 | . 2 8 7 7 . . 4 . 20 2 1 1 3 8 . 14 . . 4 . 2 . 3 . . 5 . 8 1 2 2 5 Terminals 63 | . 2 8 5 4 . . . . 10 2 1 . 3 6 . 6 . . . . 2 . 2 . . . . 5 1 . 1 5 Fabricators 9 | . . . . 2 . . . . 5 . . . . 1 . 1 . . . . . . . . . . . . . . . . Repair Stations 4 | . . . . . . . . . 1 . . . . . . 3 . . . . . . . . . . . . . . . . Recycling Units 2 | . . . . . . . . . 2 . . . . . . . . . . . . . . . . . . . . . . . Scanalyzers 6 | . . . 2 1 . . . . 1 . . . . . . 2 . . . . . . . . . . . . . . . . Garrison Access 9 | . . . . . . . . . 1 . . . . 1 . 2 . . . . . . 1 . . . . 3 . . 1 . Total Hacks 407 | . 5 23 27 19 . . 30 . 57 5 2 7 7 44 . 62 . . 13 . 9 . 8 . . 18 . 23 3 9 7 29 Successful 213 | . 2 11 14 7 . . 30 . 32 . 1 7 3 21 . 26 . . 13 . 3 . 3 . . 18 . 5 1 9 1 6 Failed 194 | . 3 12 13 12 . . . . 25 5 1 . 4 23 . 36 . . . . 6 . 5 . . . . 18 2 . 6 23 Catastrophic 48 | . . 1 3 4 . . . . 5 2 . . 1 3 . 10 . . . . 1 . . . . . . 10 . . 2 6 Database Lockouts . | . . . . . . . . . . . . . . . . . . . . . . . . . . . . . . . . . Manual 117 | . 2 17 6 9 . . . . 20 . . . 7 22 . 8 . . . . 7 . 3 . . . . 5 1 . 2 8 Terminals 218 | . 5 23 15 10 . . . . 24 5 2 . 7 41 . 20 . . . . 9 . 7 . . . . 16 3 . 2 29 Fabricators 29 | . . . . 6 . . . . 19 . . . . 2 . 2 . . . . . . . . . . . . . . . . Repair Stations 29 | . . . . . . . . . 5 . . . . . . 24 . . . . . . . . . . . . . . . . Recycling Units 4 | . . . . . . . . . 4 . . . . . . . . . . . . . . . . . . . . . . . Scanalyzers 26 | . . . 12 3 . . . . 4 . . . . . . 7 . . . . . . . . . . . . . . . . Garrison Access 24 | . . . . . . . . . 1 . . . . 1 . 9 . . . . . . 1 . . . . 7 . . 5 . Terminal Hacks 123 | . 1 7 2 1 . . 30 . 7 . 1 7 . 15 . 2 . . 13 . 1 . 2 . . 18 . 1 1 9 . 5 Record 33 | . . . . . . . 11 . . . . 7 . . . . . . . . . . . . . 6 . . . 9 . . Part Schematic 20 | . . . . . . . 12 . 1 . . . . 2 . . . . . . . . . . . 4 . . . . . 1 Robot Schematic 4 | . . . . . . . 4 . . . . . . . . . . . . . . . . . . . . . . . . . Robot Analysis 5 | . . . . . . . . . 1 . . . . . . . . . . . . . . . . 4 . . . . . . Prototype ID Bank 30 | . . 6 1 . . . 3 . 1 . . . . 2 . . . . 11 . 1 . . . . 4 . . 1 . . . Open Door 4 | . . . . . . . . . 1 . 1 . . . . . . . 2 . . . . . . . . . . . . . Level Access Points 1 | . . . . . . . . . . . . . . . . 1 . . . . . . . . . . . . . . . . Branch Access Points 4 | . . . . 1 . . . . . . . . . . . 1 . . . . . . 1 . . . . . . . . 1 Terminal Index 2 | . . . . . . . . . . . . . . 1 . . . . . . . . . . . . . 1 . . . . Fabricator Index 1 | . . . . . . . . . . . . . . 1 . . . . . . . . . . . . . . . . . . Scanalyzer Index 1 | . . 1 . . . . . . . . . . . . . . . . . . . . . . . . . . . . . . Alert Level 3 | . . . 1 . . . . . . . . . . 1 . . . . . . . . 1 . . . . . . . . . Unreport Threat 7 | . 1 . . . . . . . . . . . . 3 . . . . . . . . . . . . . . . . . 3 Locate Traps 2 | . . . . . . . . . 1 . . . . 1 . . . . . . . . . . . . . . . . . . Recall Investigation 1 | . . . . . . . . . 1 . . . . . . . . . . . . . . . . . . . . . . . Hauler Manifests 1 | . . . . . . . . . . . . . . 1 . . . . . . . . . . . . . . . . . . Registered Components 1 | . . . . . . . . . . . . . . 1 . . . . . . . . . . . . . . . . . . Zone Layout 3 | . . . . . . . . . 1 . . . . 2 . . . . . . . . . . . . . . . . . . Fabricator Hacks 16 | . . . . 1 . . . . 12 . . . . 2 . 1 . . . . . . . . . . . . . . . . Load Schematic 10 | . . . . 1 . . . . 7 . . . . 1 . 1 . . . . . . . . . . . . . . . . Build 6 | . . . . . . . . . 5 . . . . 1 . . . . . . . . . . . . . . . . . . Repair Station Hacks 18 | . . . . . . . . . 1 . . . . . . 17 . . . . . . . . . . . . . . . . Scan Component 11 | . . . . . . . . . 1 . . . . . . 10 . . . . . . . . . . . . . . . . Repair 7 | . . . . . . . . . . . . . . . . 7 . . . . . . . . . . . . . . . . Recycling Unit Hacks . | . . . . . . . . . . . . . . . . . . . . . . . . . . . . . . . . . Scanalyzer 17 | . . . 9 3 . . . . 2 . . . . . . 3 . . . . . . . . . . . . . . . . Insert Component 10 | . . . 4 2 . . . . 2 . . . . . . 2 . . . . . . . . . . . . . . . . Analyze 7 | . . . 5 1 . . . . . . . . . . . 1 . . . . . . . . . . . . . . . . Garrison Access Hacks 7 | . . . . . . . . . 1 . . . . 1 . 2 . . . . . . 1 . . . . 1 . . 1 . Seal Access 7 | . . . . . . . . . 1 . . . . 1 . 2 . . . . . . 1 . . . . 1 . . 1 . Unauthorized Hacks 31 | . 1 3 3 2 . . . . 9 . . . 3 3 . 1 . . . . 2 . . . . . . 3 . . . 1 Terminals 25 | . 1 3 3 1 . . . . 5 . . . 3 3 . . . . . . 2 . . . . . . 3 . . . 1 Assimilate 3 | . . . . . . . . . 1 . . . . . . . . . . . . . . . . . . 2 . . . . Botnet 18 | . 1 3 3 1 . . . . 3 . . . . 3 . . . . . . 2 . . . . . . 1 . . . 1 Detonate 1 | . . . . . . . . . 1 . . . . . . . . . . . . . . . . . . . . . . . Sabotage 3 | . . . . . . . . . . . . . 3 . . . . . . . . . . . . . . . . . . . Fabricators 5 | . . . . 1 . . . . 3 . . . . . . 1 . . . . . . . . . . . . . . . . Recompile 5 | . . . . 1 . . . . 3 . . . . . . 1 . . . . . . . . . . . . . . . . Repair Stations . | . . . . . . . . . . . . . . . . . . . . . . . . . . . . . . . . . Recycling Units 1 | . . . . . . . . . 1 . . . . . . . . . . . . . . . . . . . . . . . Mask 1 | . . . . . . . . . 1 . . . . . . . . . . . . . . . . . . . . . . . Scanalyzers . | . . . . . . . . . . . . . . . . . . . . . . . . . . . . . . . . . Garrison Access . | . . . . . . . . . . . . . . . . . . . . . . . . . . . . . . . . . Data Cores Recovered 2 | . . 1 . . . . . . . . . . . . . 1 . . . . . . . . . . . . . . . . Used 1 | . . . . . . . . . . . . . . . . 1 . . . . . . . . . . . . . . . . Hacking Detections 82 | . 2 8 7 7 . . . . 18 2 1 . 2 6 . 12 . . . . 2 . 2 . . . . 7 . . 2 4 Full Trace Events 22 | . 1 . 1 4 . . . . 5 1 . . . . . 3 . . . . 1 . . . . . . 4 . . 1 1 Feedback Events 1 | . . . . . . . . . . . . . . . . . . . . . . . . . . . . 1 . . . . Corruption 1 | . . . . . . . . . . . . . . . . . . . . . . . . . . . . 1 . . . . Feedback Blocked . | . . . . . . . . . . . . . . . . . . . . . . . . . . . . . . . . . Robot Schematics Acquired 4 | . . . . . . . 4 . . . . . . . . . . . . . . . . . . . . . . . . . Robots Built . | . . . . . . . . . . . . . . . . . . . . . . . . . . . . . . . . . Authchips . | . . . . . . . . . . . . . . . . . . . . . . . . . . . . . . . . . Time . | . . . . . . . . . . . . . . . . . . . . . . . . . . . . . . . . . Total Robot Build Rating . | . . . . . . . . . . . . . . . . . . . . . . . . . . . . . . . . . Part Schematics Acquired 25 | . . . 3 1 . . 12 . 1 . . . . 2 . 1 . . . . . . . . . 4 . . . . . 1 Parts Built 6 | . . . . . . . . . 5 . . . . 1 . . . . . . . . . . . . . . . . . . Authchips 4 | . . . . . . . . . 3 . . . . 1 . . . . . . . . . . . . . . . . . . Time 703 | . . . . . . . . . 551 . . . . 152 . . . . . . . . . . . . . . . . . . Total Part Build Rating 30 | . . . . . . . . . 25 . . . . 5 . . . . . . . . . . . . . . . . . . Parts Repaired 7 | . . . . . . . . . . . . . . . . 7 . . . . . . . . . . . . . . . . Time 484 | . . . . . . . . . . . . . . . . 484 . . . . . . . . . . . . . . . . Parts Recycled . | . . . . . . . . . . . . . . . . . . . . . . . . . . . . . . . . . Recycled Matter . | . . . . . . . . . . . . . . . . . . . . . . . . . . . . . . . . . Retrieved Matter . | . . . . . . . . . . . . . . . . . . . . . . . . . . . . . . . . . Retrieved Components . | . . . . . . . . . . . . . . . . . . . . . . . . . . . . . . . . . Parts Scanalyzed 7 | . . . 3 1 . . . . 1 . . . . . . 2 . . . . . . . . . . . . . . . . Part Schematics Acquired 5 | . . . 3 1 . . . . . . . . . . . 1 . . . . . . . . . . . . . . . . Parts Damaged 1 | . . . . . . . . . 1 . . . . . . . . . . . . . . . . . . . . . . . Bothacking | -11 -10 -9 -8 -7 -7 -7 -7 -6 -6 -6 -6 -6 -6 -5 -5 -5 -5 -5 -5 -4 -4 -4 -4 -4 -4 -4 -3 -3 -3 -3 -2 -2 ------------ Run | Yrd Mat Mat Mat Fac Low Low Dat Pro Fac Ext Cet Arc Hub Fac Was Fac Upp Upp War Pro Fac Was Fac Upp Upp Zhi Pro Res Arm Lab Res Tes Used RIF Installer . | . . . . . . . . . . . . . . . . . . . . . . . . . . . . . . . . . Robots Hacked . | . . . . . . . . . . . . . . . . . . . . . . . . . . . . . . . . . Non-combat . | . . . . . . . . . . . . . . . . . . . . . . . . . . . . . . . . . Combat . | . . . . . . . . . . . . . . . . . . . . . . . . . . . . . . . . . Robot Hacks Applied . | . . . . . . . . . . . . . . . . . . . . . . . . . . . . . . . . . Relay Couplers Released 2 | . . . . . . . . . . . . . . . . . . . . . . . . . . . . 1 . . 1 . Machine Destruction 2 | . . . . . . . . . . . . . . . . . . . . . . . . . . . . 1 . . 1 . Fabnet Peak Effective % . | . . . . . . . . . . . . . . . . . . . . . . . . . . . . . . . . . Robots Rewired 3 | . . . . . . . . . . 3 . . . . . . . . . . . . . . . . . . . . . . Allies Hacked . | . . . . . . . . . . . . . . . . . . . . . . . . . . . . . . . . . Hacks Repelled . | . . . . . . . . . . . . . . . . . . . . . . . . . . . . . . . . . Allies | -11 -10 -9 -8 -7 -7 -7 -7 -6 -6 -6 -6 -6 -6 -5 -5 -5 -5 -5 -5 -4 -4 -4 -4 -4 -4 -4 -3 -3 -3 -3 -2 -2 -------- Run | Yrd Mat Mat Mat Fac Low Low Dat Pro Fac Ext Cet Arc Hub Fac Was Fac Upp Upp War Pro Fac Was Fac Upp Upp Zhi Pro Res Arm Lab Res Tes Total Allies 10 | . . . . . . . . . 1 7 . . . . . . . . . . . . . . . . . 2 . . . . Largest Group 5 | . . . . . . . . . 1 5 . . . . . . . . . . . . . . . . . 1 . . . . Highest-Rated Group 272 | . . . . . . . . . 10 272 . . . . . . . . . . . . . . . . . 45 . . . . Highest-Rated Ally 159 | . . . . . . . . . 10 159 . . . . . . . . . . . . . . . . . 45 . . . . Total Orders . | . . . . . . . . . . . . . . . . . . . . . . . . . . . . . . . . . Ally Attacks 38 | . . . . . . . . . . 38 . . . . . . . . . . . . . . . . . . . . . . Total Damage 1088 | . . . . . . . . . . 1088 . . . . . . . . . . . . . . . . . . . . . . Kills 10 | . . . . . . . . . . 10 . . . . . . . . . . . . . . . . . . . . . . Allies Corrupted . | . . . . . . . . . . . . . . . . . . . . . . . . . . . . . . . . . Allies Melted 1 | . . . . . . . . . . . . . . . . . . . . . . . . . . . . . . . 1 . Intel | -11 -10 -9 -8 -7 -7 -7 -7 -6 -6 -6 -6 -6 -6 -5 -5 -5 -5 -5 -5 -4 -4 -4 -4 -4 -4 -4 -3 -3 -3 -3 -2 -2 ------- Run | Yrd Mat Mat Mat Fac Low Low Dat Pro Fac Ext Cet Arc Hub Fac Was Fac Upp Upp War Pro Fac Was Fac Upp Upp Zhi Pro Res Arm Lab Res Tes Robot Analysis Total 5 | . . . . . . . . . 1 . . . . . . . . . . . . . . . . 4 . . . . . . Derelict Logs Recovered 7 | . . . . . 2 1 . . . . . . . . . . 2 . . 1 . . . . 1 . . . . . . . Drone Launches . | . . . . . . . . . . . . . . . . . . . . . . . . . . . . . . . . . Drone Recoveries . | . . . . . . . . . . . . . . . . . . . . . . . . . . . . . . . . . Exploration | -11 -10 -9 -8 -7 -7 -7 -7 -6 -6 -6 -6 -6 -6 -5 -5 -5 -5 -5 -5 -4 -4 -4 -4 -4 -4 -4 -3 -3 -3 -3 -2 -2 ------------- Run | Yrd Mat Mat Mat Fac Low Low Dat Pro Fac Ext Cet Arc Hub Fac Was Fac Upp Upp War Pro Fac Was Fac Upp Upp Zhi Pro Res Arm Lab Res Tes Turns Passed 12385 | 81 864 1155 390 212 217 146 21 77 1211 300 70 400 350 361 18 1101 723 157 285 76 90 33 485 69 383 134 174 705 28 201 1537 331 Spaces Moved 18676 | 46 356 559 781 486 565 539 77 241 3113 517 127 191 152 700 86 1643 460 325 788 304 333 133 552 209 659 176 325 2175 54 337 1047 620 Core 52 | 6 . . . . . . . . . . . . . . . . . . . . . . . . . . . . . . 43 3 Treads 1684 | 40 356 559 . . . . . . . . . 134 152 . . . . . . . . . . . . . . . . . 443 . Legs 161 | . . . . . . . . . . . . . . . . . . . . . . . . . . . . . . . 161 . Wheels . | . . . . . . . . . . . . . . . . . . . . . . . . . . . . . . . . . Hover . | . . . . . . . . . . . . . . . . . . . . . . . . . . . . . . . . . Flight 16779 | . . . 781 486 565 539 77 241 3113 517 127 57 . 700 86 1643 460 325 788 304 333 133 552 209 659 176 325 2175 54 337 400 617 Fastest Speed 14 | 50 160 160 31 26 26 27 27 27 23 17 17 24 160 20 20 20 20 20 20 20 20 20 20 21 21 20 20 14 37 37 22 19 Average Speed 37 | 145 160 160 31 26 26 27 27 27 24 23 23 130 160 21 20 20 20 20 21 20 20 20 22 21 26 60 47 17 37 39 101 25 Slowest Speed 400 | 160 160 160 31 27 98 27 27 27 27 24 24 240 160 92 20 21 20 20 24 20 20 20 95 21 28 90 90 235 37 280 250 400 Overloaded Moves 54 | . . . . . . . . . . 27 9 . . . . . . . . . . . . . . . . 18 . . . . Propulsion Burnouts . | . . . . . . . . . . . . . . . . . . . . . . . . . . . . . . . . . Robots Hopped 107 | . . . 6 3 2 . . . 14 7 3 1 . . . 6 1 2 9 . 2 . 7 2 . . 2 29 . . . 11 Cave-ins Triggered . | . . . . . . . . . . . . . . . . . . . . . . . . . . . . . . . . . Teleports 2 | . . . . . . . . . . . . . . . . . . . . . . . . . . . . . 1 . 1 . Exploration Rate (%) 53 | 4 63 50 62 21 79 78 68 50 65 65 69 79 12 25 83 37 61 55 86 57 10 74 26 41 78 60 54 56 7 97 27 80 Regions Visited 32 Branch Regions 19 Pre-discovered Areas 7 | . . . . . 1 1 1 . . . . . . . . . 1 . . . . . . . . 3 . . . . . . Known Exits Taken 21 | . . . 1 1 1 1 1 1 1 1 1 1 1 . . 1 1 1 1 1 . . 1 . . . . 1 1 1 1 . Unknown Exits Taken 7 | 1 1 1 . . . . . . . . . . . . . . . . . . . . . 1 1 1 1 . . . . . Scrap Searched 13 | . . . . . 3 3 . . . . . . . . . . 1 . . . . . . 1 3 . 2 . . . . . Spaces Dug 93 | . . . 8 . 2 . . 11 31 . 1 1 . . . 10 . . . . 1 . 5 1 4 . . 10 . . . 8 Terrain Destroyed 418 | . . . 8 . 51 . . 29 89 . 1 1 6 1 . 11 . . . 51 1 . 15 1 4 . . 52 . . 59 38 Melee 60 | . . . 8 . 2 . . . 9 . 1 1 . . . 10 . . . . 1 . 5 1 4 . . 10 . . . 8 Projectile 54 | . . . . . . . . . . . . . 6 1 . . . . . . . . . . . . . . . . 47 . AOE 303 | . . . . . 49 . . 29 80 . . . . . . . . . . 51 . . 10 . . . . 42 . . 12 30 Terrain Rammed . | . . . . . . . . . . . . . . . . . . . . . . . . . . . . . . . . . Walls Destroyed . | . . . . . . . . . . . . . . . . . . . . . . . . . . . . . . . . . Machines Disabled . | . . . . . . . . . . . . . . . . . . . . . . . . . . . . . . . . . Actions | -11 -10 -9 -8 -7 -7 -7 -7 -6 -6 -6 -6 -6 -6 -5 -5 -5 -5 -5 -5 -4 -4 -4 -4 -4 -4 -4 -3 -3 -3 -3 -2 -2 --------- Run | Yrd Mat Mat Mat Fac Low Low Dat Pro Fac Ext Cet Arc Hub Fac Was Fac Upp Upp War Pro Fac Was Fac Upp Upp Zhi Pro Res Arm Lab Res Tes Total 22943 | 58 550 705 878 531 607 538 76 248 3498 659 161 295 193 907 88 2341 1087 409 897 316 345 137 873 229 852 201 341 2398 58 379 1360 728 Wait 2961 | . 133 35 46 5 3 . . . 281 57 35 54 9 162 1 585 624 83 109 . . . 280 21 185 . 12 131 . 11 65 34 Move 18447 | 45 355 558 768 479 560 538 76 240 3084 503 121 188 151 700 85 1630 457 320 771 303 329 132 540 205 658 175 320 2122 53 336 1046 599 Hop 92 | . . . 6 3 2 . . . 14 6 2 1 . . . 6 1 2 7 . 2 . 4 1 . . 2 23 . . . 10 Pick Up 156 | 7 4 10 5 8 6 . . . 20 1 . 8 . 10 1 10 1 . 2 1 1 1 4 . . 5 1 12 1 2 32 3 Fast Attach 203 | 5 1 8 4 3 1 . . 2 6 1 . 3 . 4 . 21 . 1 3 . 3 3 10 1 1 7 . 30 . 10 56 19 Attach 102 | 1 2 3 3 3 3 . . 1 11 2 2 3 . 9 . 3 1 . . 5 . . 5 . . . . 12 2 2 25 4 Detach 45 | . . . 5 . 3 . . 1 5 1 . 1 . 4 . 4 . . 1 1 1 . 1 . . . 2 5 . 2 5 3 Swap 93 | . 1 4 6 2 6 . . . 18 . . 7 . 4 . 10 3 . . 1 1 . 1 . . 6 . 4 . . 17 2 Drop 206 | . 2 10 7 7 6 . . 1 24 . . 5 . 10 1 20 . . 4 2 1 1 7 . . 8 2 20 . 5 40 23 Fire 328 | . 50 75 . 6 14 . . 3 . 4 . 20 33 4 . 28 . . . 3 5 . 1 . . . . 4 . 1 74 3 Melee 237 | . . . 28 15 3 . . . 35 16 1 5 . . . 23 . 3 . . 2 . 20 1 8 . 2 35 2 10 . 28 Ram . | . . . . . . . . . . . . . . . . . . . . . . . . . . . . . . . . . Kick . | . . . . . . . . . . . . . . . . . . . . . . . . . . . . . . . . . Crush 4 | . 2 2 . . . . . . . . . . . . . . . . . . . . . . . . . . . . . . Escape Stasis 55 | . . . . . . . . . . 54 . . . . . 1 . . . . . . . . . . . . . . . . Rewire 14 | . . . . . . . . . . 14 . . . . . . . . . . . . . . . . . . . . . . Trap . | . . . . . . . . . . . . . . . . . . . . . . . . . . . . . . . . . Miscellaneous . | . . . . . . . . . . . . . . . . . . . . . . . . . . . . . . . . . Route ------- -11/Scrapyard -10/Materials (discovered 3 exits: *Mat x2 / [*Min]) -9/Materials (discovered 2 exits: *Mat / [*Min]) -8/Materials -7/Factory (discovered 4 exits: Sto x2 / *Low x2) -7/Lower Caves -7/Lower Caves (discovered 2 exits: *Fac / *Dat) -7/Data Miner -6/Proximity Caves -6/Factory (discovered 6 exits: *Fac x3 / *Low x2 / *Ext) -6/Extension (discovered 3 exits: *Fac x2 / *Cet) -6/Cetus -6/Archives (discovered 2 exits: *Hub x2) -6/Hub_04(d) -5/Factory (discovered 3 exits: *Fac / *Upp x2) -5/Waste -5/Factory (discovered 6 exits: *Fac x4 / *Upp x2) -5/Upper Caves -5/Upper Caves (discovered 2 exits: *Fac / *War) -5/Warlord -4/Proximity Caves -4/Factory (discovered 2 exits: Res / *Upp) -4/Waste -4/Factory (discovered 3 exits: *Res / *Upp x2) -4/Upper Caves -4/Upper Caves (discovered 2 exits: *Res / *Zhi) -4/Zhirov -3/Proximity Caves -3/Research (discovered 4 exits: *Res x2 / *Arm / *Qua) -3/Armory -3/Lab -2/Research -2/Testing (discovered 1 exit: [*Acc]) History --------- Turn | Location | Event 9 | -11/Scrapyard | Discovered new exit (range 13) 82 | -11/Scrapyard | Entered Materials 231 | -10/Materials | Discovered new exit (range 15) 301 | -10/Materials | Build established: Mutant 458 | -10/Materials | Discovered new exit (range 9) 617 | -10/Materials | Discovered new exit (range 8) 946 | -10/Materials | Entered another Materials area 946 | -9/Materials | Evolved 2 slots: Propulsion x1, Utility x1 1106 | -9/Materials | Discovered new exit (range 11) 1192 | -9/Materials | Lost 3 parts (1u2w) 1516 | -9/Materials | Build established: Scavenger-Mutant 2016 | -9/Materials | Discovered new exit (range 9) 2101 | -9/Materials | Entered another Materials area 2101 | -8/Materials | Evolved 2 slots: Propulsion x1, Utility x1 2472 | -8/Materials | Discovered new exit (range 19) 2490 | -8/Materials | Identified exit to Factory 2491 | -8/Materials | Entered Factory 2491 | -7/Factory | Evolved 2 slots: Propulsion x1, Utility x1 2584 | -7/Factory | Build established: Scout 2683 | -7/Factory | Identified exit to Storage 2683 | -7/Factory | Identified exit to Lower Caves 2703 | -7/Factory | Entered Lower Caves 2704 | -7/Lower Caves | Encountered a Warlord checkpoint 2723 | -7/Lower Caves | Attracted the attention of an 0b10 checkpoint 2754 | -7/Lower Caves | Learned Factory stockpile data 2792 | -7/Lower Caves | Found Imp. Powered Armor 2853 | -7/Lower Caves | Learned location of Zion (-6) 2916 | -7/Lower Caves | Discovered new exit (range 7) 2919 | -7/Lower Caves | Identified exit to Lower Caves 2920 | -7/Lower Caves | Entered another Lower Caves area 2921 | -7/Lower Caves | Discovered new exit (range 15) 3008 | -7/Lower Caves | Attracted the attention of an 0b10 base 3027 | -7/Lower Caves | Learned location of Extension (-6) 3029 | -7/Lower Caves | Discovered new exit (range 7) 3030 | -7/Lower Caves | Identified exit to Data Miner 3066 | -7/Lower Caves | Entered Data Miner 3066 | -7/Data Miner | Discovered new exit (range 6) 3072 | -7/Data Miner | Met Data Miner 3076 | -7/Data Miner | Learned location of Section 7 (-3) 3076 | -7/Data Miner | Acquired the access code to Warlord's prototype stash 3081 | -7/Data Miner | Received God Mode back door access code from Data Miner 3087 | -7/Data Miner | Identified exit to Proximity Caves 3087 | -7/Data Miner | Entered Proximity Caves 3159 | -6/Proximity Caves | Discovered new exit (range 15) 3164 | -6/Proximity Caves | Identified exit to Factory 3164 | -6/Proximity Caves | Entered Factory 3164 | -6/Factory | Evolved 2 slots: Utility x2 3271 | -6/Factory | Fabricated Cld. Cesium-ion Thruster (x1) 3637 | -6/Factory | Fabricated Cld. Cesium-ion Thruster (x1) 3755 | -6/Factory | Build established: Hacker-Sprinter 3781 | -6/Factory | Fabricated Adv. Sensor Array? 3821 | -6/Factory | Discovered new exit (range 6) 3822 | -6/Factory | Identified exit to Factory 3833 | -6/Factory | Discovered exit to Factory (range 8) 3946 | -6/Factory | Fabricated Cld. Cesium-ion Thruster? 4051 | -6/Factory | Discovered new exit (range 6) 4052 | -6/Factory | Identified exit to Lower Caves 4121 | -6/Factory | Discovered exit to Factory (range 15) 4244 | -6/Factory | Discovered exit to Lower Caves (range 16) 4285 | -6/Factory | Cargo convoy interrupted 4328 | -6/Factory | Fabricated Lgt. Regenerative Plating? 4368 | -6/Factory | Discovered new exit (range 6) 4368 | -6/Factory | Identified exit to Extension 4375 | -6/Factory | Entered Extension 4381 | -6/Extension | Disrupted transfer network 4477 | -6/Extension | Rescued A7 4485 | -6/Extension | Energy Cycler disabled 4485 | -6/Extension | Rescued a captive Derelict 4486 | -6/Extension | Rescued a captive Derelict 4486 | -6/Extension | Rescued a captive Derelict 4486 | -6/Extension | Rescued a captive Derelict 4487 | -6/Extension | Rescued a captive Derelict 4487 | -6/Extension | Rescued a captive Derelict 4487 | -6/Extension | Rescued a captive Derelict 4488 | -6/Extension | Rescued a captive Derelict 4489 | -6/Extension | Rescued a captive Derelict 4490 | -6/Extension | Rescued a captive Derelict 4502 | -6/Extension | Rescued a captive Derelict 4623 | -6/Extension | Spotted B-75 Beast 4643 | -6/Extension | Spotted B-75 Beast 4644 | -6/Extension | Extracted ID and sensor layout for unrecognized location from A7's data core 4644 | -6/Extension | Discovered exit to Factory (range 16) 4664 | -6/Extension | Discovered exit to Factory (range 16) 4664 | -6/Extension | Discovered new exit (range 15) 4675 | -6/Extension | Identified exit to Cetus 4675 | -6/Extension | Entered Cetus 4679 | -6/Cetus | Spotted Cetus Guard 4680 | -6/Cetus | Spotted Cetus Guard 4720 | -6/Cetus | Spotted Cetus Guard 4721 | -6/Cetus | Spotted Cetus Guard 4741 | -6/Cetus | Discovered new exit (range 15) 4744 | -6/Cetus | Identified exit to Archives 4745 | -6/Cetus | Entered Archives 4756 | -6/Archives | Lost 3 parts (1n2u) 4994 | -6/Archives | Discovered new exit (range 15) 5040 | -6/Archives | Unable to access archive contents 5047 | -6/Archives | Discovered new exit (range 13) 5064 | -6/Archives | Identified exit to Hub_04(d) 5145 | -6/Archives | Entered Hub_04(d) 5163 | -6/Hub_04(d) | Build established: Scavenger-Mutant 5164 | -6/Hub_04(d) | Discovered exit to Factory (range 15) 5423 | -6/Hub_04(d) | Network Hub disabled 5495 | -6/Hub_04(d) | Entered Factory 5495 | -5/Factory | Evolved 2 slots: Power x1, Propulsion x1 5556 | -5/Factory | Discovered new exit (range 7) 5558 | -5/Factory | Identified exit to Upper Caves 5648 | -5/Factory | Discovered new exit (range 10) 5755 | -5/Factory | Identified exit to Factory 5757 | -5/Factory | Fabricated Cld. Cesium-ion Thruster? 5786 | -5/Factory | Discovered exit to Upper Caves (range 13) 5806 | -5/Factory | Build established: Sprinter 5856 | -5/Factory | Sucked down chute 5856 | -5/Factory | Entered Waste 5866 | -5/Waste | Spotted C-40 Crusher 5866 | -5/Waste | Spotted C-40 Crusher 5867 | -5/Waste | Spotted C-40 Crusher 5867 | -5/Waste | Spotted C-40 Crusher 5871 | -5/Waste | EMP discharged 5871 | -5/Waste | Discovered new exit (range 14) 5871 | -5/Waste | Spotted C-40 Crusher 5874 | -5/Waste | Identified exit to Factory 5874 | -5/Waste | Entered Factory 5983 | -5/Factory | System corruption reached 10% 6135 | -5/Factory | Repaired Cld. Cesium-ion Thruster 6186 | -5/Factory | Repaired Adv. Terrain Scanner 6225 | -5/Factory | Repaired Adv. Weight Redist. System 6314 | -5/Factory | Repaired Broken Imp. Cesium-ion Thruster 6370 | -5/Factory | Build established: Hacker-Sprinter 6428 | -5/Factory | Discovered exit to Factory (range 9) 6523 | -5/Factory | Discovered exit to Factory (range 7) 6708 | -5/Factory | Repaired Biomechanical Wings 6790 | -5/Factory | Repaired Cold Fusion Reactor 6859 | -5/Factory | Repaired Q-thruster 6975 | -5/Factory | Entered Upper Caves 7094 | -5/Upper Caves | Learned Factory emergency access door positions 7254 | -5/Upper Caves | Build established: Scout 7268 | -5/Upper Caves | Learned location of Armory (-3) 7518 | -5/Upper Caves | Discovered new exit (range 20) 7607 | -5/Upper Caves | Identified exit to Upper Caves 7698 | -5/Upper Caves | Entered another Upper Caves area 7700 | -5/Upper Caves | Discovered exit to Factory (range 14) 7761 | -5/Upper Caves | Attracted the attention of an 0b10 outpost 7779 | -5/Upper Caves | Spotted B-75 Beast 7794 | -5/Upper Caves | Discovered new exit (range 16) 7799 | -5/Upper Caves | Identified exit to Warlord 7855 | -5/Upper Caves | Entered Warlord 7862 | -5/Warlord | System corruption cleaned by Quarantine Array 7930 | -5/Warlord | Found Prototype Device 7930 | -5/Warlord | Identified Minesniffer Drone Bay 7954 | -5/Warlord | Met Warlord 7972 | -5/Warlord | Visited the Vortex Lab 7973 | -5/Warlord | Found Prototype Energy Gun 7973 | -5/Warlord | Identified Vortex Shotgun 7979 | -5/Warlord | Warlord's base attacked by MAIN.C 8072 | -5/Warlord | Build established: Sprinter 8083 | -5/Warlord | Opened side exit 8137 | -5/Warlord | Discovered new exit (range 15) 8140 | -5/Warlord | Identified exit to Proximity Caves 8140 | -5/Warlord | Entered Proximity Caves 8144 | -4/Proximity Caves | Spotted B-86 Titan 8169 | -4/Proximity Caves | Attracted the attention of an 0b10 checkpoint 8171 | -4/Proximity Caves | Learned Research garrison access intel 8205 | -4/Proximity Caves | Discovered exit to Factory (range 8) 8216 | -4/Proximity Caves | Entered Factory 8216 | -4/Factory | Evolved 2 slots: Utility x2 8277 | -4/Factory | Discovered new exit (range 13) 8279 | -4/Factory | Discovered new exit (range 3) 8306 | -4/Factory | Sucked down chute 8306 | -4/Factory | Entered Waste 8310 | -4/Waste | Spotted C-40 Crusher 8310 | -4/Waste | Spotted C-40 Crusher 8314 | -4/Waste | Spotted C-40 Crusher 8315 | -4/Waste | Spotted C-40 Crusher 8321 | -4/Waste | EMP discharged 8321 | -4/Waste | System corruption reached 10% 8321 | -4/Waste | Spotted C-40 Crusher 8335 | -4/Waste | Discovered new exit (range 11) 8338 | -4/Waste | Found Fusion Bomb Launcher 8339 | -4/Waste | Entered Factory 8668 | -4/Factory | Identified exit to Upper Caves 8779 | -4/Factory | Discovered new exit (range 4) 8816 | -4/Factory | Lost 4 parts (1p2u1w) 8824 | -4/Factory | Entered Upper Caves 8892 | -4/Upper Caves | Discovered new exit (range 7) 8893 | -4/Upper Caves | Entered another Upper Caves area 8923 | -4/Upper Caves | Discovered new exit (range 13) 9253 | -4/Upper Caves | Ambushed by wild Derelicts 9275 | -4/Upper Caves | Discovered new exit (range 5) 9276 | -4/Upper Caves | Entered Zhirov 9276 | -4/Zhirov | Discovered new exit (range 3) 9282 | -4/Zhirov | Met Zhirov 9290 | -4/Zhirov | Found Alien Artifact 9290 | -4/Zhirov | Identified Integrated Dissipator 9290 | -4/Zhirov | Installed Integrated Dissipator, increased core heat dissipation (+20) 9297 | -4/Zhirov | Found Alien Artifact 9381 | -4/Zhirov | Learned location of Quarantine (-3) 9381 | -4/Zhirov | Learned location of Testing (-2) 9381 | -4/Zhirov | Learned location of Command (-1) 9386 | -4/Zhirov | Zhirov requested help retrieving the SGEMP Prototype 9410 | -4/Zhirov | Entered Proximity Caves 9560 | -3/Proximity Caves | Attracted the attention of an 0b10 checkpoint 9582 | -3/Proximity Caves | Discovered new exit (range 5) 9584 | -3/Proximity Caves | Entered Research 9584 | -3/Research | Evolved 2 slots: Propulsion x2 9585 | -3/Research | Loaded intel: 4 garrison access locations 9591 | -3/Research | Found Fusion Bomb Launcher 9671 | -3/Research | Spotted B-86 Titan 9703 | -3/Research | Discovered new exit (range 11) 9712 | -3/Research | Identified exit to Quarantine 9733 | -3/Research | Found Enh. Force Lance 9742 | -3/Research | Found Prototype Device 9742 | -3/Research | Identified Exp. Thermal Defense Suite 9831 | -3/Research | Spotted B-86 Titan 9929 | -3/Research | Found Enh. Force Lance 9946 | -3/Research | Found Prototype Slashing Weapon 9946 | -3/Research | Identified Nanosword 9984 | -3/Research | Spotted B-86 Titan 10084 | -3/Research | Search patrols dispatched 10091 | -3/Research | Lost 6 parts (1p2n3u) 10110 | -3/Research | Discovered new exit (range 9) 10111 | -3/Research | Identified exit to Research 10165 | -3/Research | Lost 6 parts (1p4n1u) 10249 | -3/Research | Core integrity fell below 50% 10279 | -3/Research | Discovered new exit (range 11) 10279 | -3/Research | Discovered exit to Research (range 21) 10282 | -3/Research | Identified exit to Armory 10287 | -3/Research | Lost 10 parts (2p6n2u) 10289 | -3/Research | Entered Armory 10299 | -3/Armory | Found Gamma Bomb Array 10316 | -3/Armory | Identified Transdimensional Reconstructor 10316 | -3/Armory | Warped through subspace to slip node 10316 | -3/Armory | Discovered new exit (range 1) 10316 | -3/Armory | Identified exit to Lab 10317 | -3/Armory | Entered Lab 10317 | -3/Lab | Discovered exit to Research (range 9) 10323 | -3/Lab | Hidden lab's door opened automatically 10323 | -3/Lab | Sensor layout match revealed 10323 | -3/Lab | Unable to decrypt terminal 10324 | -3/Lab | Gained access to the hidden lab's interior 10324 | -3/Lab | Detected by scanners 10327 | -3/Lab | Found Alien Artifact 10327 | -3/Lab | Identified Core Reset Matrix 10327 | -3/Lab | Used Core Reset Matrix 10331 | -3/Lab | Sensed 3 artifacts in vicinity 10333 | -3/Lab | Confronted by A5 10353 | -3/Lab | Found Integrated Dissipator 10353 | -3/Lab | Installed Integrated Dissipator, increased core heat dissipation (+20) 10362 | -3/Lab | Found Core Expander 10362 | -3/Lab | Installed Core Expander, added new Weapon slot 10383 | -3/Lab | Found Prototype Protection 10383 | -3/Lab | Identified Med. Regenerative Plating 10386 | -3/Lab | Found Prototype Energy Cannon 10386 | -3/Lab | Identified Potential Cannon 10396 | -3/Lab | Discovered exit to Research (range 20) 10404 | -3/Lab | Found Prototype Hackware 10404 | -3/Lab | Identified Quantum Router 10409 | -3/Lab | Found Prototype Energy Gun 10409 | -3/Lab | Identified Tachyon Dispersion Ray 10466 | -3/Lab | Found Transdimensional Reconstructor 10471 | -3/Lab | Unable to decrypt terminal 10472 | -3/Lab | Unable to decrypt terminal 10480 | -3/Lab | Found Prototype Special Weapon 10480 | -3/Lab | Identified Gui. Remote Datajack 10487 | -3/Lab | Unable to decrypt terminal 10518 | -3/Lab | Entered Research 10518 | -2/Research | Warlord forces began assault on 0b10 10518 | -2/Research | Evolved 2 slots: Propulsion x1, Utility x1 10628 | -2/Research | Research machine network offline 10717 | -2/Research | Build established: Hacker-Mutant 10730 | -2/Research | Met up with Warlord 10925 | -2/Research | Borebot progress halted 10939 | -2/Research | Borebot progress halted 10966 | -2/Research | Found Unknown Protection 10967 | -2/Research | Identified Imp. Powered Armor 11231 | -2/Research | Build established: Hacker-Tank 11231 | -2/Research | Spotted Executioner 11294 | -2/Research | Spotted Striker 11346 | -2/Research | Spotted Striker 11358 | -2/Research | Spotted Striker 11369 | -2/Research | Destroyed Striker 11376 | -2/Research | Destroyed Striker 11401 | -2/Research | Discovered new exit (range 9) 11424 | -2/Research | Spotted Striker 11425 | -2/Research | Spotted Executioner 11431 | -2/Research | Destroyed Striker 11440 | -2/Research | Spotted Striker 11449 | -2/Research | Destroyed Executioner 11453 | -2/Research | Destroyed Striker 11474 | -2/Research | Destroyed Striker 11506 | -2/Research | Lost 9 parts (2p1n5u1w) 11511 | -2/Research | Found Prototype Device 11512 | -2/Research | Identified Adv. Kinecellerator 11513 | -2/Research | Spotted Executioner 11518 | -2/Research | Spotted Executioner 11526 | -2/Research | Identified exit to Testing 11536 | -2/Research | Destroyed Executioner 11539 | -2/Research | Destroyed Executioner 11578 | -2/Research | Lost 3 parts (3n) 11669 | -2/Research | Found Prototype Processor 11687 | -2/Research | Found Adv. Kinecellerator 11690 | -2/Research | Found Adv. Kinecellerator 11810 | -2/Research | Spotted Tracker 11810 | -2/Research | Spotted Tracker 11813 | -2/Research | Spotted Tracker 11817 | -2/Research | Spotted Combat Programmer 11818 | -2/Research | System corruption reached 10% 11828 | -2/Research | Identified Exp. Core Analyzer 11837 | -2/Research | Spotted Combat Programmer 11837 | -2/Research | Destroyed Tracker 11838 | -2/Research | Spotted Combat Programmer 11845 | -2/Research | Core integrity fell below 50% 11849 | -2/Research | Combat Programmer assimilated allied O4-LBB(K) 11850 | -2/Research | Spotted O4-LBB(K) 11860 | -2/Research | Destroyed Tracker 11868 | -2/Research | Warped through subspace 11885 | -2/Research | Spotted Striker 11894 | -2/Research | Lost 3 allies 11897 | -2/Research | Lost 23 parts (3p7n6u7w) 11996 | -2/Research | Warlord invited to help at Command 12026 | -2/Research | Spotted Executioner 12053 | -2/Research | Spotted Striker 12055 | -2/Research | Entered Testing 12065 | -2/Testing | Garrison activated, responded to threat 12243 | -2/Testing | Build established: Scavenger-Sprinter 12261 | -2/Testing | Found Prototype Protection 12263 | -2/Testing | Found Med. Regenerative Plating 12265 | -2/Testing | Found Med. Regenerative Plating 12268 | -2/Testing | Found Prototype Protection 12268 | -2/Testing | Identified SHELL Armor 12274 | -2/Testing | Core integrity fell below 20% 12304 | -2/Testing | Spotted PY-7AY64M3R9F 12308 | -2/Testing | Lost 3 parts (3u) 12308 | -2/Testing | Spotted Striker 12308 | -2/Testing | Spotted Striker 12314 | -2/Testing | Found Prototype Energy Cannon 12314 | -2/Testing | Identified Imp. Potential Cannon 12353 | -2/Testing | Found Prototype Ballistic Cannon 12353 | -2/Testing | Identified Omega Cannon 12363 | -2/Testing | Intercept squad dispatched 12363 | -2/Testing | Spotted Tracker 12363 | -2/Testing | Spotted Tracker 12365 | -2/Testing | Spotted Combat Programmer 12366 | -2/Testing | Discovered new exit (range 21) 12369 | -2/Testing | Identified Hvy. Regenerative Plating 12372 | -2/Testing | System corruption reached 30% 12384 | -2/Testing | Spotted Combat Programmer 12386 | -2/Testing | Destroyed by P-80 Master with Gamma Rifle Last Messages --------------- 12369_ Identified Hvy. Regenerative Plating. 12371_ Penetrated by EMDS Slug. 12371_ ALERT: Hostiles spotted, dispatching reinforcements to Terminal T010. 12374_ Penetrated by EMDS Slug. 12375_ Acquired Prototype Wheel. 12375_ Identified Hdn. Centrium Wheel. 12375_ Faulty integration triggers heat surge (+393). 12376_ Penetrated by EMDS Slug. 12379_ Impulse Thruster Array destroyed. 12382_ Penetrated by EMDS Slug. 12382_ Electron Diverter destroyed. 12383_ System corrupted: Energy discharge (-7). 12383_ Hvy. Regenerative Plating destroyed. 12385_ Q-thruster destroyed. 12385_ P-80 Master resets Tracker, system corruption cleaned. 12385_ Electron Diverter destroyed. [Achievement: I Was Wrong!] Map ----- +----------------------------------------------------+ | ?????????????????????????????????????????????????? | | ?????????????????????????????????????????????????? | | ?????????????????????????????????????????????????? | | ?????????????????????????????????????????????????? | | ????????????????????????T????????????????????????? | | ???????????????????????? "##?????????????????????? | | ????????????????????????o g ?????????????????????? | | ???????????????????????? g